[Event "*** Titled Tuesday Blitz"]
[Site "Chess.com"]
[Date "2020.05.26"]
[Round "1"]
[White "Sweafty"]
[Black "nadirsm"]
[Result "1-0"]
[WhiteElo "2510"]
[BlackElo "2135"]
[TimeControl "180+1"]
[EndTime "10:06:48 PDT"]
[Termination "Sweafty won on time"]

1. d4 {[%clk 0:03:00.9]} 1... d5 {[%clk 0:02:59.3]} 2. c4 {[%clk 0:02:59]} 2...
c6 {[%clk 0:02:59.3]} 3. Nc3 {[%clk 0:02:58.9]} 3... e6 {[%clk 0:02:59.5]} 4.
Nf3 {[%clk 0:02:58.4]} 4... f5 {[%clk 0:02:59.9]} 5. g3 {[%clk 0:02:57]} 5...
Nf6 {[%clk 0:03:00.2]} 6. Bg2 {[%clk 0:02:57.4]} 6... Bd6 {[%clk 0:03:00.4]} 7.
O-O {[%clk 0:02:57.5]} 7... O-O {[%clk 0:03:00.3]} 8. b3 {[%clk 0:02:56.8]} 8...
Nbd7 {[%clk 0:02:58.3]} 9. Nd2 {[%clk 0:02:56.7]} 9... Qe8 {[%clk 0:02:47.9]}
10. Bb2 {[%clk 0:02:47.1]} 10... Qh5 {[%clk 0:02:46.3]} 11. f3 {[%clk
0:02:41.9]} 11... f4 {[%clk 0:02:43.5]} 12. g4 {[%clk 0:02:28.9]} 12... Qf7
{[%clk 0:02:30.7]} 13. Qe1 {[%clk 0:02:14.9]} 13... e5 {[%clk 0:02:21.2]} 14.
dxe5 {[%clk 0:01:53]} 14... Bc5+ {[%clk 0:01:43.8]} 15. Kh1 {[%clk 0:01:48.2]}
15... Nxe5 {[%clk 0:01:44.1]} 16. Na4 {[%clk 0:01:41.2]} 16... Bd6 {[%clk
0:01:42.2]} 17. cxd5 {[%clk 0:01:38.3]} 17... cxd5 {[%clk 0:01:39.6]} 18. Qd1
{[%clk 0:01:23]} 18... Nfxg4 {[%clk 0:01:15.9]} 19. fxg4 {[%clk 0:01:17.7]}
19... Nxg4 {[%clk 0:01:14.4]} 20. Nf3 {[%clk 0:01:03.4]} 20... Ne3 {[%clk
0:00:53.6]} 21. Qd4 {[%clk 0:01:01.5]} 21... Nf5 {[%clk 0:00:33.1]} 22. Ng5
{[%clk 0:00:45.1]} 22... Qg6 {[%clk 0:00:05.6]} 23. Qxd5+ {[%clk 0:00:31.5]}
23... Kh8 {[%clk 0:00:04.6]} 24. Be4 {[%clk 0:00:21.5]} 1-0

[Event "*** Titled Tuesday Blitz"]
[Site "Chess.com"]
[Date "2020.05.26"]
[Round "1"]
[White "LiemLe"]
[Black "plumalka"]
[Result "1-0"]
[WhiteElo "2943"]
[BlackElo "2441"]
[TimeControl "180+1"]
[EndTime "10:06:49 PDT"]
[Termination "LiemLe won by resignation"]

1. Nf3 {[%clk 0:03:00.9]} 1... c5 {[%clk 0:02:56.8]} 2. c4 {[%clk 0:03:00.4]}
2... Nc6 {[%clk 0:02:56.3]} 3. Nc3 {[%clk 0:02:59.1]} 3... e5 {[%clk 0:02:50.4]}
4. e3 {[%clk 0:02:59.2]} 4... Nf6 {[%clk 0:02:42.8]} 5. d4 {[%clk 0:02:58.9]}
5... cxd4 {[%clk 0:02:42.2]} 6. exd4 {[%clk 0:02:59.8]} 6... e4 {[%clk
0:02:42.8]} 7. Ne5 {[%clk 0:02:59.8]} 7... Bb4 {[%clk 0:02:42.5]} 8. Be2 {[%clk
0:02:56]} 8... O-O {[%clk 0:02:41]} 9. O-O {[%clk 0:02:55.1]} 9... Re8 {[%clk
0:02:37]} 10. Bf4 {[%clk 0:02:36.4]} 10... d6 {[%clk 0:02:19.9]} 11. Nxc6 {[%clk
0:02:35]} 11... bxc6 {[%clk 0:02:20.8]} 12. Qa4 {[%clk 0:02:21.2]} 12... Qb6
{[%clk 0:01:28.9]} 13. a3 {[%clk 0:02:06.8]} 13... Bxc3 {[%clk 0:01:28.7]} 14.
bxc3 {[%clk 0:02:07.7]} 14... Bd7 {[%clk 0:01:24]} 15. Rab1 {[%clk 0:02:06]}
15... Qd8 {[%clk 0:01:22.3]} 16. Bxd6 {[%clk 0:02:04.1]} 16... Bf5 {[%clk
0:01:17.6]} 17. Be5 {[%clk 0:01:49.8]} 17... e3 {[%clk 0:01:14]} 18. Rbe1 {[%clk
0:01:34.9]} 18... Ne4 {[%clk 0:01:12.2]} 19. fxe3 {[%clk 0:01:17.5]} 19... Nxc3
{[%clk 0:01:12.3]} 20. Qb3 {[%clk 0:01:14.3]} 20... Nxe2+ {[%clk 0:01:11.3]} 21.
Rxe2 {[%clk 0:01:15.2]} 21... Qg5 {[%clk 0:01:08.2]} 22. Qb7 {[%clk 0:00:55.8]}
22... Qg6 {[%clk 0:01:06.8]} 23. Ref2 {[%clk 0:00:53.1]} 23... Be6 {[%clk
0:00:56.9]} 24. d5 {[%clk 0:00:48.2]} 24... cxd5 {[%clk 0:00:54.2]} 25. cxd5
{[%clk 0:00:49.1]} 25... Bh3 {[%clk 0:00:34.3]} 26. Bg3 {[%clk 0:00:47.8]} 26...
Bg4 {[%clk 0:00:28.1]} 27. Rxf7 {[%clk 0:00:47]} 27... Rad8 {[%clk 0:00:27.4]}
28. d6 {[%clk 0:00:37.7]} 28... Rxe3 {[%clk 0:00:25.8]} 29. Qe7 {[%clk
0:00:20.7]} 29... Qxf7 {[%clk 0:00:12.3]} 30. Qxf7+ {[%clk 0:00:18.3]} 1-0

[Event "*** Titled Tuesday Blitz"]
[Site "Chess.com"]
[Date "2020.05.26"]
[Round "1"]
[White "Firouzja2003"]
[Black "eightbyeightchess"]
[Result "1-0"]
[WhiteElo "3167"]
[BlackElo "2458"]
[TimeControl "180+1"]
[EndTime "10:06:50 PDT"]
[Termination "Firouzja2003 won by resignation"]

1. e4 {[%clk 0:03:00.8]} 1... e6 {[%clk 0:02:52.5]} 2. d4 {[%clk 0:02:58.8]}
2... d5 {[%clk 0:02:51.7]} 3. Nc3 {[%clk 0:02:59.7]} 3... Nf6 {[%clk 0:02:50.8]}
4. e5 {[%clk 0:02:59.4]} 4... Nfd7 {[%clk 0:02:49.9]} 5. f4 {[%clk 0:02:59.2]}
5... c5 {[%clk 0:02:49.3]} 6. Nf3 {[%clk 0:02:58.7]} 6... Nc6 {[%clk 0:02:47.2]}
7. Be3 {[%clk 0:02:58.5]} 7... cxd4 {[%clk 0:02:38.3]} 8. Nxd4 {[%clk
0:02:57.7]} 8... Bc5 {[%clk 0:02:38.3]} 9. Qd2 {[%clk 0:02:51.1]} 9... a6 {[%clk
0:02:37.4]} 10. Nce2 {[%clk 0:02:43.5]} 10... O-O {[%clk 0:02:31.1]} 11. c3
{[%clk 0:02:39.9]} 11... Nxd4 {[%clk 0:02:19.7]} 12. cxd4 {[%clk 0:02:21.7]}
12... Bb6 {[%clk 0:02:10.2]} 13. Ng3 {[%clk 0:02:10.5]} 13... f6 {[%clk
0:02:03.8]} 14. O-O-O {[%clk 0:02:05.2]} 14... Nb8 {[%clk 0:01:46.2]} 15. Kb1
{[%clk 0:02:00.6]} 15... Bd7 {[%clk 0:01:41.3]} 16. Bd3 {[%clk 0:01:58.7]} 16...
Bb5 {[%clk 0:01:32.5]} 17. f5 {[%clk 0:01:54.3]} 17... fxe5 {[%clk 0:01:14.3]}
18. dxe5 {[%clk 0:01:43.1]} 18... d4 {[%clk 0:00:50.3]} 19. Bxb5 {[%clk
0:01:21.1]} 19... dxe3 {[%clk 0:00:46.2]} 20. Qxd8 {[%clk 0:01:17.2]} 20... Bxd8
{[%clk 0:00:43.9]} 21. Bc4 {[%clk 0:01:16.6]} 21... Nc6 {[%clk 0:00:41.6]} 22.
Bxe6+ {[%clk 0:01:07.7]} 22... Kh8 {[%clk 0:00:41.9]} 23. Rhe1 {[%clk
0:01:07.1]} 23... Bh4 {[%clk 0:00:40.5]} 24. Rxe3 {[%clk 0:01:06.2]} 24... Rad8
{[%clk 0:00:25]} 25. Bd7 {[%clk 0:01:00.9]} 25... Bg5 {[%clk 0:00:20.4]} 26. Re4
{[%clk 0:00:56.1]} 26... Ne7 {[%clk 0:00:17.6]} 27. e6 {[%clk 0:00:49.5]} 27...
Nxf5 {[%clk 0:00:16.3]} 28. Nxf5 {[%clk 0:00:48.4]} 28... Rxf5 {[%clk
0:00:16.2]} 29. e7 {[%clk 0:00:41.8]} 29... Bxe7 {[%clk 0:00:16.3]} 30. Bxf5
{[%clk 0:00:31.5]} 30... Rxd1+ {[%clk 0:00:14.6]} 31. Kc2 {[%clk 0:00:32.4]}
31... Re1 {[%clk 0:00:12]} 32. Rxe1 {[%clk 0:00:31.4]} 1-0

[Event "*** Titled Tuesday Blitz"]
[Site "Chess.com"]
[Date "2020.05.26"]
[Round "1"]
[White "MariaFominykh"]
[Black "Kirill_Klukin"]
[Result "0-1"]
[WhiteElo "2347"]
[BlackElo "2708"]
[TimeControl "180+1"]
[EndTime "10:06:52 PDT"]
[Termination "Kirill_Klukin won by resignation"]

1. d4 {[%clk 0:02:55.1]} 1... Nf6 {[%clk 0:02:57]} 2. c4 {[%clk 0:02:54.8]} 2...
Nc6 {[%clk 0:02:56.4]} 3. d5 {[%clk 0:02:53.6]} 3... Ne5 {[%clk 0:02:56.1]} 4.
Qc2 {[%clk 0:02:49.4]} 4... e6 {[%clk 0:02:44.3]} 5. e4 {[%clk 0:02:43.9]} 5...
Bb4+ {[%clk 0:02:40.9]} 6. Nc3 {[%clk 0:02:34]} 6... exd5 {[%clk 0:02:38.4]} 7.
cxd5 {[%clk 0:02:29.9]} 7... O-O {[%clk 0:02:37.5]} 8. Be2 {[%clk 0:02:27.6]}
8... c6 {[%clk 0:02:37]} 9. dxc6 {[%clk 0:01:47.2]} 9... d5 {[%clk 0:02:34.5]}
10. exd5 {[%clk 0:01:43.2]} 10... Nxd5 {[%clk 0:02:31.4]} 11. Bd2 {[%clk
0:01:40.6]} 11... Nxc6 {[%clk 0:01:52.8]} 12. Nf3 {[%clk 0:01:35.8]} 12... Re8
{[%clk 0:01:48.2]} 13. O-O {[%clk 0:01:32.7]} 13... Nxc3 {[%clk 0:01:48]} 14.
Bxc3 {[%clk 0:01:30.7]} 14... Bxc3 {[%clk 0:01:47.7]} 15. bxc3 {[%clk
0:01:31.1]} 15... Qc7 {[%clk 0:01:46]} 16. Ng5 {[%clk 0:01:21.7]} 16... g6
{[%clk 0:01:34.8]} 17. Bc4 {[%clk 0:01:15.9]} 17... Ne5 {[%clk 0:01:29.5]} 18.
Bb3 {[%clk 0:01:15.8]} 18... Bf5 {[%clk 0:01:28]} 19. Ne4 {[%clk 0:00:49.9]}
19... Qc6 {[%clk 0:01:02.8]} 20. f3 {[%clk 0:00:44]} 20... Kg7 {[%clk
0:00:52.2]} 21. Qf2 {[%clk 0:00:37.3]} 21... Rac8 {[%clk 0:00:43]} 22. Qxa7
{[%clk 0:00:28.2]} 22... Bxe4 {[%clk 0:00:35.6]} 23. fxe4 {[%clk 0:00:27.3]}
23... Re7 {[%clk 0:00:35.8]} 24. Qd4 {[%clk 0:00:26.2]} 24... Qxc3 {[%clk
0:00:35]} 25. Rad1 {[%clk 0:00:20.6]} 25... Qxd4+ {[%clk 0:00:32.8]} 26. Rxd4
{[%clk 0:00:21.5]} 26... Rc3 {[%clk 0:00:26.9]} 27. Rb4 {[%clk 0:00:20.7]} 27...
Re3 {[%clk 0:00:25.8]} 28. h3 {[%clk 0:00:19.6]} 28... Re2 {[%clk 0:00:23.5]}
29. Rf2 {[%clk 0:00:19]} 29... Rxf2 {[%clk 0:00:23.1]} 30. Kxf2 {[%clk
0:00:18.5]} 30... Nd3+ {[%clk 0:00:22.8]} 0-1

[Event "*** Titled Tuesday Blitz"]
[Site "Chess.com"]
[Date "2020.05.26"]
[Round "1"]
[White "Anna_ChessMate"]
[Black "NotFischer"]
[Result "1-0"]
[WhiteElo "2510"]
[BlackElo "2138"]
[TimeControl "180+1"]
[EndTime "10:06:52 PDT"]
[Termination "Anna_ChessMate won by resignation"]

1. d4 {[%clk 0:02:59]} 1... g6 {[%clk 0:03:00.2]} 2. c4 {[%clk 0:02:58.7]} 2...
Bg7 {[%clk 0:03:00.8]} 3. Nf3 {[%clk 0:02:59.3]} 3... d6 {[%clk 0:03:01.1]} 4.
Nc3 {[%clk 0:02:58.5]} 4... Bg4 {[%clk 0:03:00.8]} 5. e3 {[%clk 0:02:54.6]} 5...
Nc6 {[%clk 0:02:59.2]} 6. Be2 {[%clk 0:02:55]} 6... e5 {[%clk 0:02:59.1]} 7. O-O
{[%clk 0:02:49.2]} 7... Nf6 {[%clk 0:02:58.1]} 8. h3 {[%clk 0:02:44.6]} 8...
Bxf3 {[%clk 0:02:57.2]} 9. Bxf3 {[%clk 0:02:45.5]} 9... O-O {[%clk 0:02:55.9]}
10. Bxc6 {[%clk 0:02:31.6]} 10... bxc6 {[%clk 0:02:54.8]} 11. dxe5 {[%clk
0:02:32.5]} 11... dxe5 {[%clk 0:02:55.4]} 12. Qf3 {[%clk 0:02:32]} 12... Qd7
{[%clk 0:02:43.3]} 13. Rd1 {[%clk 0:02:30.4]} 13... Qe6 {[%clk 0:02:43.9]} 14.
b3 {[%clk 0:02:25.1]} 14... Rab8 {[%clk 0:02:43]} 15. Ba3 {[%clk 0:02:23.7]}
15... Rfd8 {[%clk 0:02:37.4]} 16. Na4 {[%clk 0:02:22.4]} 16... Nd7 {[%clk
0:02:34.2]} 17. Rab1 {[%clk 0:02:16.6]} 17... e4 {[%clk 0:02:34.2]} 18. Qe2
{[%clk 0:02:13.8]} 18... f5 {[%clk 0:02:33.9]} 19. Bb2 {[%clk 0:02:13.2]} 19...
Ne5 {[%clk 0:02:23.3]} 20. Bxe5 {[%clk 0:02:07.6]} 20... Qxe5 {[%clk 0:02:17.5]}
21. c5 {[%clk 0:02:05.8]} 21... Rd5 {[%clk 0:02:11.2]} 22. Qa6 {[%clk
0:01:58.6]} 22... Rbd8 {[%clk 0:01:54.5]} 23. Rxd5 {[%clk 0:01:57.5]} 23... Rxd5
{[%clk 0:01:48.8]} 24. Qxc6 {[%clk 0:01:53.6]} 24... Rd2 {[%clk 0:01:43.7]} 25.
Qa8+ {[%clk 0:01:47.4]} 25... Kf7 {[%clk 0:01:41.5]} 26. Qxa7 {[%clk 0:01:34.3]}
26... f4 {[%clk 0:01:41.3]} 27. c6 {[%clk 0:01:25.7]} 27... f3 {[%clk
0:01:35.1]} 28. Qc5 {[%clk 0:01:23]} 28... fxg2 {[%clk 0:00:52.8]} 29. Qxe5
{[%clk 0:01:18.3]} 29... Bxe5 {[%clk 0:00:53.7]} 30. Nc5 {[%clk 0:01:18.6]}
30... Rxa2 {[%clk 0:00:47.2]} 31. Nxe4 {[%clk 0:01:11.1]} 31... Ke6 {[%clk
0:00:36.5]} 32. b4 {[%clk 0:01:08]} 32... Rb2 {[%clk 0:00:31.2]} 33. Rxb2 {[%clk
0:01:05.2]} 33... Bxb2 {[%clk 0:00:32.1]} 34. b5 {[%clk 0:01:03.1]} 34... Kd5
{[%clk 0:00:32.2]} 35. Kxg2 {[%clk 0:00:37.5]} 35... Kxe4 {[%clk 0:00:31.1]} 36.
b6 {[%clk 0:00:37.6]} 1-0

[Event "*** Titled Tuesday Blitz"]
[Site "Chess.com"]
[Date "2020.05.26"]
[Round "1"]
[White "Sergey85Rodchenkov"]
[Black "Nastasia28"]
[Result "1-0"]
[WhiteElo "2522"]
[BlackElo "2154"]
[TimeControl "180+1"]
[EndTime "10:06:53 PDT"]
[Termination "Sergey85Rodchenkov won by resignation"]

1. e4 {[%clk 0:03:00.3]} 1... c5 {[%clk 0:02:57.1]} 2. Nf3 {[%clk 0:02:59.5]}
2... e6 {[%clk 0:02:57.2]} 3. d4 {[%clk 0:02:59.6]} 3... cxd4 {[%clk 0:02:58.1]}
4. Nxd4 {[%clk 0:03:00]} 4... a6 {[%clk 0:02:58.6]} 5. Nc3 {[%clk 0:03:00.3]}
5... b5 {[%clk 0:02:58.7]} 6. Bd3 {[%clk 0:03:00.5]} 6... Bc5 {[%clk 0:02:57.5]}
7. Nb3 {[%clk 0:02:59.3]} 7... Ba7 {[%clk 0:02:57.3]} 8. O-O {[%clk 0:02:57.7]}
8... Nc6 {[%clk 0:02:56.4]} 9. Qe2 {[%clk 0:02:57.1]} 9... d6 {[%clk 0:02:56]}
10. Be3 {[%clk 0:02:53.8]} 10... Bxe3 {[%clk 0:02:56.2]} 11. Qxe3 {[%clk
0:02:54.6]} 11... Nf6 {[%clk 0:02:55.3]} 12. Rad1 {[%clk 0:02:53.8]} 12... O-O
{[%clk 0:02:54.3]} 13. f4 {[%clk 0:02:50.4]} 13... Qc7 {[%clk 0:02:53.3]} 14.
Kh1 {[%clk 0:02:43.6]} 14... Bb7 {[%clk 0:02:51]} 15. Rde1 {[%clk 0:02:35.8]}
15... Rfe8 {[%clk 0:02:08.5]} 16. e5 {[%clk 0:01:46.4]} 16... dxe5 {[%clk
0:02:05.8]} 17. fxe5 {[%clk 0:01:46.2]} 17... Ng4 {[%clk 0:01:44.4]} 18. Qh3
{[%clk 0:01:35.5]} 18... Ncxe5 {[%clk 0:01:35.6]} 19. Rxe5 {[%clk 0:01:29.1]}
19... Nxe5 {[%clk 0:01:31.8]} 20. Qxh7+ {[%clk 0:01:24.1]} 20... Kf8 {[%clk
0:01:32.1]} 21. Qh8+ {[%clk 0:01:06.9]} 21... Ke7 {[%clk 0:01:31.9]} 22. Qxg7
{[%clk 0:01:07.2]} 22... Rg8 {[%clk 0:01:31.3]} 23. Qf6+ {[%clk 0:01:06.9]}
23... Ke8 {[%clk 0:01:30.5]} 24. Be4 {[%clk 0:01:01]} 24... Ng4 {[%clk
0:01:08.8]} 25. Qh4 {[%clk 0:01:00.1]} 25... Ne3 {[%clk 0:01:08.1]} 26. Rg1
{[%clk 0:00:46.2]} 26... Rg4 {[%clk 0:00:52.8]} 27. Qh3 {[%clk 0:00:31.5]} 27...
Bxe4 {[%clk 0:00:13.4]} 28. Qxe3 {[%clk 0:00:30.5]} 28... Qe5 {[%clk 0:00:12.7]}
29. Nxe4 {[%clk 0:00:26.5]} 29... Qxe4 {[%clk 0:00:11.7]} 30. Qh3 {[%clk
0:00:24.9]} 30... Rd8 {[%clk 0:00:11.1]} 31. Nc5 {[%clk 0:00:22.5]} 31... Ke7
{[%clk 0:00:10.7]} 32. Nxe4 {[%clk 0:00:21.9]} 32... Rxe4 {[%clk 0:00:11.6]} 33.
Qf3 {[%clk 0:00:21.2]} 1-0

[Event "*** Titled Tuesday Blitz"]
[Site "Chess.com"]
[Date "2020.05.26"]
[Round "1"]
[White "rpragchess"]
[Black "StockholmMissile"]
[Result "1-0"]
[WhiteElo "2844"]
[BlackElo "2411"]
[TimeControl "180+1"]
[EndTime "10:06:55 PDT"]
[Termination "rpragchess won by checkmate"]

1. d4 {[%clk 0:02:50.3]} 1... d5 {[%clk 0:02:59]} 2. Bf4 {[%clk 0:02:47.8]} 2...
Nf6 {[%clk 0:02:58.3]} 3. e3 {[%clk 0:02:47.1]} 3... c5 {[%clk 0:02:55.6]} 4. c3
{[%clk 0:02:45]} 4... Nc6 {[%clk 0:02:54.8]} 5. Nd2 {[%clk 0:02:44.7]} 5... e6
{[%clk 0:02:53.7]} 6. Ngf3 {[%clk 0:02:43.5]} 6... Be7 {[%clk 0:02:52]} 7. Bd3
{[%clk 0:02:42]} 7... Nh5 {[%clk 0:02:50.2]} 8. Be5 {[%clk 0:02:39.5]} 8... Nxe5
{[%clk 0:02:49.4]} 9. Nxe5 {[%clk 0:02:39.3]} 9... Nf6 {[%clk 0:02:48.6]} 10.
Bb5+ {[%clk 0:02:39.4]} 10... Bd7 {[%clk 0:02:43.1]} 11. Nxd7 {[%clk 0:02:32.5]}
11... Nxd7 {[%clk 0:02:44]} 12. O-O {[%clk 0:02:14.3]} 12... O-O {[%clk
0:02:42.6]} 13. Nf3 {[%clk 0:02:14.2]} 13... Nf6 {[%clk 0:02:40.2]} 14. Bd3
{[%clk 0:02:12.4]} 14... Bd6 {[%clk 0:02:39]} 15. Qe2 {[%clk 0:02:09.4]} 15...
h6 {[%clk 0:02:33.4]} 16. Rad1 {[%clk 0:02:04.9]} 16... Qb6 {[%clk 0:02:31.3]}
17. Ne5 {[%clk 0:01:46.7]} 17... Qc7 {[%clk 0:01:52.4]} 18. f4 {[%clk
0:01:44.3]} 18... Nd7 {[%clk 0:01:48.1]} 19. Bb1 {[%clk 0:01:26]} 19... f5
{[%clk 0:01:33.3]} 20. g4 {[%clk 0:01:23.6]} 20... Qd8 {[%clk 0:00:44.5]} 21.
gxf5 {[%clk 0:00:57.3]} 21... exf5 {[%clk 0:00:45.4]} 22. Qg2 {[%clk 0:00:56.9]}
22... Nxe5 {[%clk 0:00:26.1]} 23. dxe5 {[%clk 0:00:55.7]} 23... Be7 {[%clk
0:00:25.2]} 24. Rxd5 {[%clk 0:00:55.9]} 24... Qc8 {[%clk 0:00:19.8]} 25. Rfd1
{[%clk 0:00:54.9]} 25... Qe6 {[%clk 0:00:17.6]} 26. Bd3 {[%clk 0:00:50.5]} 26...
Kh8 {[%clk 0:00:13.3]} 27. Bc4 {[%clk 0:00:49.9]} 27... Qb6 {[%clk 0:00:12.8]}
28. b3 {[%clk 0:00:48.6]} 28... Rad8 {[%clk 0:00:12]} 29. Rd7 {[%clk 0:00:45.5]}
29... Rxd7 {[%clk 0:00:11.3]} 30. Rxd7 {[%clk 0:00:45.2]} 30... Re8 {[%clk
0:00:11.5]} 31. h3 {[%clk 0:00:35.4]} 31... Bf8 {[%clk 0:00:11.4]} 32. Qd5
{[%clk 0:00:33.8]} 32... Qg6+ {[%clk 0:00:09.4]} 33. Kh2 {[%clk 0:00:33.3]}
33... Qh5 {[%clk 0:00:09.6]} 34. Qg8# {[%clk 0:00:32]} 1-0

[Event "*** Titled Tuesday Blitz"]
[Site "Chess.com"]
[Date "2020.05.26"]
[Round "1"]
[White "Chessmatus"]
[Black "Gromes7"]
[Result "1-0"]
[WhiteElo "2480"]
[BlackElo "2014"]
[TimeControl "180+1"]
[EndTime "10:06:55 PDT"]
[Termination "Chessmatus won by resignation"]

1. e4 {[%clk 0:03:00.9]} 1... c5 {[%clk 0:02:59.5]} 2. Nf3 {[%clk 0:03:00.9]}
2... d6 {[%clk 0:02:57.2]} 3. d4 {[%clk 0:03:01.4]} 3... cxd4 {[%clk 0:02:57]}
4. Nxd4 {[%clk 0:03:02.3]} 4... Nf6 {[%clk 0:02:56.6]} 5. Nc3 {[%clk 0:03:02.9]}
5... Nc6 {[%clk 0:02:56.5]} 6. Bg5 {[%clk 0:03:02.3]} 6... e6 {[%clk 0:02:56.2]}
7. Qd2 {[%clk 0:03:02.4]} 7... Be7 {[%clk 0:02:56.6]} 8. O-O-O {[%clk
0:03:02.1]} 8... O-O {[%clk 0:02:56.7]} 9. f3 {[%clk 0:02:41.9]} 9... Nxd4
{[%clk 0:02:55.2]} 10. Qxd4 {[%clk 0:02:41.6]} 10... a6 {[%clk 0:02:55.8]} 11.
g4 {[%clk 0:02:34.6]} 11... Qc7 {[%clk 0:02:52.2]} 12. h4 {[%clk 0:02:34.4]}
12... b5 {[%clk 0:02:48.4]} 13. Kb1 {[%clk 0:02:21.5]} 13... Rd8 {[%clk
0:02:07]} 14. h5 {[%clk 0:02:12.9]} 14... Rb8 {[%clk 0:02:00.7]} 15. h6 {[%clk
0:02:12]} 15... b4 {[%clk 0:01:56.9]} 16. Ne2 {[%clk 0:02:03.3]} 16... e5 {[%clk
0:01:56.6]} 17. Qe3 {[%clk 0:01:50.6]} 17... g6 {[%clk 0:01:56.4]} 18. Ng3
{[%clk 0:01:43.4]} 18... Be6 {[%clk 0:01:47]} 19. Bd3 {[%clk 0:01:32.1]} 19...
a5 {[%clk 0:01:41.2]} 20. Rhg1 {[%clk 0:01:20.9]} 20... a4 {[%clk 0:01:14.2]}
21. Nf5 {[%clk 0:01:20.7]} 21... b3 {[%clk 0:00:22.2]} 22. Nxe7+ {[%clk
0:01:19.5]} 22... Qxe7 {[%clk 0:00:22.2]} 23. cxb3 {[%clk 0:01:19.8]} 23... axb3
{[%clk 0:00:22.1]} 24. a3 {[%clk 0:01:20.2]} 24... d5 {[%clk 0:00:16.2]} 25.
exd5 {[%clk 0:01:10.7]} 25... Rxd5 {[%clk 0:00:13.9]} 26. Be4 {[%clk 0:00:58.1]}
26... Ra5 {[%clk 0:00:12.5]} 27. Qd2 {[%clk 0:00:30.9]} 27... Rxa3 {[%clk
0:00:05]} 28. bxa3 {[%clk 0:00:30.6]} 28... Qxa3 {[%clk 0:00:05.1]} 29. Bxf6
{[%clk 0:00:30.4]} 29... b2 {[%clk 0:00:04.5]} 30. Qd8+ {[%clk 0:00:30.3]} 30...
Rxd8 {[%clk 0:00:02.4]} 31. Rxd8+ {[%clk 0:00:31.2]} 1-0

[Event "*** Titled Tuesday Blitz"]
[Site "Chess.com"]
[Date "2020.05.26"]
[Round "1"]
[White "wnstop"]
[Black "zala02"]
[Result "1-0"]
[WhiteElo "2585"]
[BlackElo "2239"]
[TimeControl "180+1"]
[EndTime "10:06:56 PDT"]
[Termination "wnstop won by resignation"]

1. e4 {[%clk 0:02:59.4]} 1... c5 {[%clk 0:02:58.8]} 2. Nf3 {[%clk 0:02:53.8]}
2... Nc6 {[%clk 0:02:58.1]} 3. Bb5 {[%clk 0:02:51.4]} 3... g6 {[%clk 0:02:50.3]}
4. O-O {[%clk 0:02:48.6]} 4... Bg7 {[%clk 0:02:50.1]} 5. Bxc6 {[%clk 0:02:47.5]}
5... dxc6 {[%clk 0:02:46.4]} 6. d3 {[%clk 0:02:45.1]} 6... Nf6 {[%clk 0:02:13]}
7. h3 {[%clk 0:02:41.2]} 7... O-O {[%clk 0:02:09.7]} 8. Nc3 {[%clk 0:02:38.2]}
8... b6 {[%clk 0:02:00.7]} 9. Be3 {[%clk 0:02:37.1]} 9... Ne8 {[%clk 0:01:37.3]}
10. Qd2 {[%clk 0:02:36.5]} 10... Nc7 {[%clk 0:01:36.9]} 11. Bh6 {[%clk 0:02:30]}
11... Ne6 {[%clk 0:01:20.4]} 12. e5 {[%clk 0:02:17.8]} 12... Nd4 {[%clk
0:01:13]} 13. Nxd4 {[%clk 0:02:17]} 13... cxd4 {[%clk 0:01:06.8]} 14. Ne4 {[%clk
0:02:13.4]} 14... Bxe5 {[%clk 0:00:44]} 15. Bxf8 {[%clk 0:02:11.8]} 15... Qxf8
{[%clk 0:00:44.9]} 16. f4 {[%clk 0:02:06.6]} 16... Bg7 {[%clk 0:00:42.9]} 17.
Ng3 {[%clk 0:02:05.8]} 17... Bf5 {[%clk 0:00:25.3]} 18. Nxf5 {[%clk 0:02:02.7]}
18... gxf5 {[%clk 0:00:26.2]} 19. g4 {[%clk 0:02:02.5]} 19... fxg4 {[%clk
0:00:24.9]} 20. hxg4 {[%clk 0:02:03.4]} 20... Rd8 {[%clk 0:00:25.1]} 21. Qg2
{[%clk 0:02:03.3]} 21... Rd6 {[%clk 0:00:25]} 22. Rae1 {[%clk 0:02:02.5]} 22...
c5 {[%clk 0:00:21.9]} 23. g5 {[%clk 0:02:00.6]} 23... h6 {[%clk 0:00:18.1]} 24.
Re4 {[%clk 0:01:57.9]} 24... hxg5 {[%clk 0:00:18.1]} 25. fxg5 {[%clk 0:01:58.8]}
25... Rg6 {[%clk 0:00:18.4]} 26. Ref4 {[%clk 0:01:50.5]} 26... f6 {[%clk
0:00:13]} 27. Rg4 {[%clk 0:01:45.6]} 27... f5 {[%clk 0:00:12.2]} 28. Rg3 {[%clk
0:01:37]} 28... e6 {[%clk 0:00:12.4]} 29. Qh3 {[%clk 0:01:34.3]} 29... Be5
{[%clk 0:00:12.2]} 30. Rg2 {[%clk 0:01:33.5]} 30... Qg7 {[%clk 0:00:12.1]} 31.
Qh5 {[%clk 0:01:31.8]} 31... Bf6 {[%clk 0:00:10.7]} 32. Kf2 {[%clk 0:01:25.2]}
32... Rxg5 {[%clk 0:00:09.3]} 33. Qe8+ {[%clk 0:01:04.7]} 33... Qf8 {[%clk
0:00:07.3]} 34. Qxe6+ {[%clk 0:01:04.1]} 34... Qf7 {[%clk 0:00:07.4]} 35. Rxg5+
{[%clk 0:00:58.5]} 35... Bxg5 {[%clk 0:00:06.2]} 36. Qxf7+ {[%clk 0:00:57.4]}
36... Kxf7 {[%clk 0:00:07.1]} 37. Rh1 {[%clk 0:00:56.2]} 37... Be3+ {[%clk
0:00:06.5]} 38. Kf3 {[%clk 0:00:56.8]} 38... a6 {[%clk 0:00:06]} 39. Rh7+ {[%clk
0:00:56]} 39... Kg6 {[%clk 0:00:06.4]} 40. Rb7 {[%clk 0:00:56.5]} 40... b5
{[%clk 0:00:06]} 41. Rb6+ {[%clk 0:00:56.6]} 41... Kg5 {[%clk 0:00:05.8]} 42.
Rxa6 {[%clk 0:00:57.5]} 42... c4 {[%clk 0:00:06.4]} 43. Rb6 {[%clk 0:00:55.1]}
43... cxd3 {[%clk 0:00:05.8]} 44. cxd3 {[%clk 0:00:55.1]} 1-0